[Event "Titled Tuesday Blitz August 1 Late 2023"]
[White "Elsa167"]
[Black "Sargsyan, Shant"]
[BlackFideId "13306766"]
[WhiteElo "2773"]
[BlackElo "2974"]
[Result "1-0"]
[Round "8"]
[TimeControl "180+1"]
[Date "2023.08.01"]
[WhiteClock "0:00:07"]
[BlackClock "0:00:00"]
[Board "8"]

1. d4 {[%clk 0:03:00]}  g6 {[%clk 0:03:00]} 2. c4 {[%clk 0:03:01]}  Nf6 {[%clk 0:03:00]} 3. Nc3 {[%clk 0:03:01]}  Bg7 {[%clk 0:03:00]} 4. e4 {[%clk 0:03:01]}  d6 {[%clk 0:03:01]} 5. h3 {[%clk 0:03:02]}  Nbd7 {[%clk 0:03:00]} 6. Be3 {[%clk 0:03:01]}  e5 {[%clk 0:03:01]} 7. d5 {[%clk 0:03:01]}  h5 {[%clk 0:03:01]} 8. Bd3 {[%clk 0:02:57]}  Nc5 {[%clk 0:02:59]} 9. Qd2 {[%clk 0:02:57]}  a5 {[%clk 0:02:58]} 10. Bc2 {[%clk 0:02:55]}  h4 {[%clk 0:02:58]} 11. Nf3 {[%clk 0:02:53]}  Nh5 {[%clk 0:02:57]} 12. Nxh4 {[%clk 0:02:01]}  Nf4 {[%clk 0:02:08]} 13. Bxf4 {[%clk 0:02:00]}  exf4 {[%clk 0:02:07]} 14. Nf3 {[%clk 0:02:01]}  g5 {[%clk 0:02:05]} 15. O-O-O {[%clk 0:01:54]}  Bd7 {[%clk 0:02:04]} 16. Rde1 {[%clk 0:01:49]}  Qe7 {[%clk 0:02:02]} 17. e5 {[%clk 0:01:31]}  dxe5 {[%clk 0:01:59]} 18. Nxe5 {[%clk 0:01:32]}  Bxe5 {[%clk 0:01:33]} 19. Rxe5 {[%clk 0:01:33]}  Qxe5 {[%clk 0:01:33]} 20. Re1 {[%clk 0:01:33]}  f6 {[%clk 0:01:34]} 21. Rxe5+ {[%clk 0:01:30]}  fxe5 {[%clk 0:01:35]} 22. Qe1 {[%clk 0:01:31]}  O-O-O {[%clk 0:01:34]} 23. Qxe5 {[%clk 0:01:31]}  f3 {[%clk 0:01:27]} 24. gxf3 {[%clk 0:01:22]}  Rxh3 {[%clk 0:01:27]} 25. Ne4 {[%clk 0:01:09]}  Na6 {[%clk 0:01:20]} 26. Nxg5 {[%clk 0:00:51]}  Rh1+ {[%clk 0:01:20]} 27. Kd2 {[%clk 0:00:51]}  Nb4 {[%clk 0:01:20]} 28. Bf5 {[%clk 0:00:47]}  Rf1 {[%clk 0:01:13]} 29. Nf7 {[%clk 0:00:20]}  Rxf2+ {[%clk 0:00:29]} 30. Ke3 {[%clk 0:00:20]}  Rf1 {[%clk 0:00:08]} 31. Bxd7+ {[%clk 0:00:19]}  Kb8 {[%clk 0:00:08]} 32. Ke2 {[%clk 0:00:12]}  Re1+ {[%clk 0:00:04]} 33. Kxe1 {[%clk 0:00:13]}  Nd3+ {[%clk 0:00:05]} 34. Ke2 {[%clk 0:00:12]}  Nxe5 {[%clk 0:00:06]} 35. Nxe5 {[%clk 0:00:12]}  Rh8 {[%clk 0:00:05]} 36. Ke3 {[%clk 0:00:03]}  Rh2 {[%clk 0:00:06]} 37. a4 {[%clk 0:00:03]}  Rxb2 {[%clk 0:00:04]} 38. f4 {[%clk 0:00:04]}  c6 {[%clk 0:00:05]} 39. d6 {[%clk 0:00:04]}  Rb1 {[%clk 0:00:04]} 40. f5 {[%clk 0:00:04]}  Re1+ {[%clk 0:00:04]} 41. Kf4 {[%clk 0:00:04]}  Rd1 {[%clk 0:00:04]} 42. c5 {[%clk 0:00:05]}  b6 {[%clk 0:00:03]} 43. f6 {[%clk 0:00:05]}  bxc5 {[%clk 0:00:03]} 44. f7 {[%clk 0:00:05]}  Rf1+ {[%clk 0:00:04]} 45. Nf3 {[%clk 0:00:06]}  Ka7 {[%clk 0:00:04]} 46. f8=Q {[%clk 0:00:06]}  Rb1 {[%clk 0:00:04]} 47. Qd8 {[%clk 0:00:06]}  Rb7 {[%clk 0:00:03]} 48. Qxa5+ {[%clk 0:00:06]}  Kb8 {[%clk 0:00:03]} 49. Bxc6 {[%clk 0:00:06]}  Rf7+ {[%clk 0:00:00]} 50. Ke5 {[%clk 0:00:07]} 1-0


[Site "https://www.chess.com"]

[Event "Titled Tuesday Blitz August 1 Late 2023"]
[White "He, Anthony"]
[Black "Grigoriants, Sergey"]
[WhiteFideId "2088215"]
[BlackFideId "4130804"]
[WhiteElo "2938"]
[BlackElo "2852"]
[Result "1-0"]
[Round "8"]
[TimeControl "180+1"]
[Date "2023.08.01"]
[WhiteClock "0:01:09"]
[BlackClock "0:00:00"]
[Board "9"]

1. e4 {[%clk 0:03:00]}  c5 {[%clk 0:02:54]} 2. Ne2 {[%clk 0:03:01]}  Nf6 {[%clk 0:02:42]} 3. Nbc3 {[%clk 0:03:00]}  d6 {[%clk 0:02:39]} 4. g3 {[%clk 0:02:59]}  g6 {[%clk 0:02:38]} 5. Bg2 {[%clk 0:02:59]}  Bg7 {[%clk 0:02:39]} 6. O-O {[%clk 0:03:00]}  O-O {[%clk 0:02:39]} 7. d4 {[%clk 0:03:01]}  cxd4 {[%clk 0:02:39]} 8. Nxd4 {[%clk 0:03:02]}  Nc6 {[%clk 0:02:38]} 9. Nb3 {[%clk 0:03:02]}  Bd7 {[%clk 0:02:35]} 10. h3 {[%clk 0:03:01]}  Rb8 {[%clk 0:02:36]} 11. a4 {[%clk 0:03:01]}  Na5 {[%clk 0:02:21]} 12. Be3 {[%clk 0:02:52]}  Nc4 {[%clk 0:02:10]} 13. Bc1 {[%clk 0:02:38]}  Qb6 {[%clk 0:01:44]} 14. a5 {[%clk 0:02:36]}  Qc7 {[%clk 0:01:23]} 15. Re1 {[%clk 0:02:34]}  Rfc8 {[%clk 0:01:17]} 16. g4 {[%clk 0:02:27]}  e6 {[%clk 0:01:10]} 17. f4 {[%clk 0:02:15]}  b5 {[%clk 0:01:08]} 18. axb6 {[%clk 0:02:14]}  Qxb6+ {[%clk 0:01:04]} 19. Kh2 {[%clk 0:02:14]}  a5 {[%clk 0:00:58]} 20. Qd3 {[%clk 0:01:57]}  Be8 {[%clk 0:00:44]} 21. Rb1 {[%clk 0:01:54]}  a4 {[%clk 0:00:42]} 22. Nd2 {[%clk 0:01:54]}  Nxd2 {[%clk 0:00:29]} 23. Bxd2 {[%clk 0:01:55]}  Nd7 {[%clk 0:00:29]} 24. Be3 {[%clk 0:01:42]}  Nc5 {[%clk 0:00:29]} 25. Qd2 {[%clk 0:01:43]}  Qb4 {[%clk 0:00:27]} 26. Qxd6 {[%clk 0:01:39]}  Rc6 {[%clk 0:00:21]} 27. Qd2 {[%clk 0:01:35]}  Rbc8 {[%clk 0:00:14]} 28. e5 {[%clk 0:01:35]}  R6c7 {[%clk 0:00:14]} 29. Qf2 {[%clk 0:01:15]}  a3 {[%clk 0:00:14]} 30. Na2 {[%clk 0:01:15]}  Qa4 {[%clk 0:00:09]} 31. b3 {[%clk 0:01:16]}  Qa6 {[%clk 0:00:07]} 32. Red1 {[%clk 0:01:13]}  Bc6 {[%clk 0:00:06]} 33. Nb4 {[%clk 0:01:13]}  Qb5 {[%clk 0:00:02]} 34. Nxc6 {[%clk 0:01:12]}  Rxc6 {[%clk 0:00:03]} 35. Bxc6 {[%clk 0:01:12]}  Qxc6 {[%clk 0:00:02]} 36. Bxc5 {[%clk 0:01:12]}  Qxc5 {[%clk 0:00:03]} 37. Rd8+ {[%clk 0:01:12]}  Bf8 {[%clk 0:00:02]} 38. Qxc5 {[%clk 0:01:13]}  Rxc5 {[%clk 0:00:02]} 39. c4 {[%clk 0:01:11]}  Kg7 {[%clk 0:00:02]} 40. Ra1 {[%clk 0:01:09]}  Ra5 {[%clk 0:00:02]} 41. Rb8 {[%clk 0:01:08]}  g5 {[%clk 0:00:03]} 42. Rb5 {[%clk 0:01:08]}  Rxb5 {[%clk 0:00:01]} 43. cxb5 {[%clk 0:01:09]}  gxf4 {[%clk 0:00:00]} 44. b6 {[%clk 0:01:09]} 1-0


[Site "https://www.chess.com"]

[Event "Titled Tuesday Blitz August 1 Late 2023"]
[White "Hakobyan, Aram"]
[Black "Golubka, Petro"]
[WhiteFideId "13306677"]
[BlackFideId "14114224"]
[WhiteElo "2926"]
[BlackElo "2761"]
[Result "1-0"]
[Round "8"]
[TimeControl "180+1"]
[Date "2023.08.01"]
[WhiteClock "0:00:29"]
[BlackClock "0:00:00"]
[Board "10"]

1. d4 {[%clk 0:03:00]}  d5 {[%clk 0:01:41]} 2. c4 {[%clk 0:02:59]}  dxc4 {[%clk 0:01:40]} 3. Nf3 {[%clk 0:02:59]}  Nf6 {[%clk 0:01:40]} 4. e3 {[%clk 0:03:00]}  e6 {[%clk 0:01:41]} 5. Bxc4 {[%clk 0:03:00]}  c5 {[%clk 0:01:41]} 6. O-O {[%clk 0:03:01]}  a6 {[%clk 0:01:41]} 7. e4 {[%clk 0:03:02]}  Nxe4 {[%clk 0:01:38]} 8. Qe2 {[%clk 0:02:56]}  Nd6 {[%clk 0:01:34]} 9. dxc5 {[%clk 0:02:56]}  Nxc4 {[%clk 0:01:34]} 10. Qxc4 {[%clk 0:02:57]}  Nc6 {[%clk 0:01:33]} 11. Nc3 {[%clk 0:02:57]}  Na5 {[%clk 0:01:20]} 12. Qg4 {[%clk 0:02:48]}  h5 {[%clk 0:01:18]} 13. Qe4 {[%clk 0:02:40]}  Bd7 {[%clk 0:01:08]} 14. Rd1 {[%clk 0:02:30]}  Nc6 {[%clk 0:01:05]} 15. Be3 {[%clk 0:02:13]}  Be7 {[%clk 0:00:59]} 16. Rd2 {[%clk 0:02:13]}  Qa5 {[%clk 0:00:49]} 17. Rad1 {[%clk 0:02:11]}  Rd8 {[%clk 0:00:48]} 18. a3 {[%clk 0:02:10]}  Qc7 {[%clk 0:00:41]} 19. b4 {[%clk 0:02:06]}  O-O {[%clk 0:00:39]} 20. Bf4 {[%clk 0:02:04]}  Qc8 {[%clk 0:00:38]} 21. Bd6 {[%clk 0:02:00]}  Rfe8 {[%clk 0:00:28]} 22. Bxe7 {[%clk 0:01:57]}  Nxe7 {[%clk 0:00:29]} 23. Ng5 {[%clk 0:01:57]}  Nf5 {[%clk 0:00:27]} 24. Qf3 {[%clk 0:01:51]}  f6 {[%clk 0:00:25]} 25. Nge4 {[%clk 0:01:44]}  h4 {[%clk 0:00:23]} 26. Qg4 {[%clk 0:01:41]}  Kf7 {[%clk 0:00:18]} 27. Qxf5 {[%clk 0:01:30]}  exf5 {[%clk 0:00:17]} 28. Nd6+ {[%clk 0:01:31]}  Ke7 {[%clk 0:00:15]} 29. Nxc8+ {[%clk 0:01:21]}  Bxc8 {[%clk 0:00:16]} 30. Rxd8 {[%clk 0:01:18]}  Rxd8 {[%clk 0:00:15]} 31. Rxd8 {[%clk 0:01:19]}  Kxd8 {[%clk 0:00:16]} 32. f4 {[%clk 0:01:20]}  g5 {[%clk 0:00:15]} 33. Kf2 {[%clk 0:01:16]}  Be6 {[%clk 0:00:15]} 34. Ke3 {[%clk 0:01:15]}  Kd7 {[%clk 0:00:15]} 35. g3 {[%clk 0:01:14]}  hxg3 {[%clk 0:00:14]} 36. hxg3 {[%clk 0:01:15]}  Kc6 {[%clk 0:00:14]} 37. Kd4 {[%clk 0:01:15]}  b6 {[%clk 0:00:13]} 38. cxb6 {[%clk 0:01:10]}  Kxb6 {[%clk 0:00:14]} 39. Na4+ {[%clk 0:01:11]}  Kc6 {[%clk 0:00:13]} 40. Nc5 {[%clk 0:01:12]}  Bc8 {[%clk 0:00:14]} 41. Kc4 {[%clk 0:01:09]}  Kd6 {[%clk 0:00:13]} 42. a4 {[%clk 0:01:09]}  Kc6 {[%clk 0:00:13]} 43. Kd4 {[%clk 0:01:04]}  Kd6 {[%clk 0:00:11]} 44. Kc4 {[%clk 0:00:47]}  Kc6 {[%clk 0:00:11]} 45. b5+ {[%clk 0:00:48]}  axb5+ {[%clk 0:00:12]} 46. axb5+ {[%clk 0:00:49]}  Kb6 {[%clk 0:00:11]} 47. Kb4 {[%clk 0:00:49]}  Kc7 {[%clk 0:00:10]} 48. Kc3 {[%clk 0:00:45]}  Kb6 {[%clk 0:00:10]} 49. Kc4 {[%clk 0:00:45]}  Kc7 {[%clk 0:00:10]} 50. Na4 {[%clk 0:00:38]}  Kd6 {[%clk 0:00:08]} 51. Nb6 {[%clk 0:00:36]}  Bb7 {[%clk 0:00:09]} 52. Kd4 {[%clk 0:00:37]}  Be4 {[%clk 0:00:07]} 53. Nc4+ {[%clk 0:00:37]}  Kc7 {[%clk 0:00:06]} 54. Kc5 {[%clk 0:00:38]}  Bd3 {[%clk 0:00:06]} 55. b6+ {[%clk 0:00:38]}  Kb7 {[%clk 0:00:06]} 56. Nd6+ {[%clk 0:00:39]}  Kb8 {[%clk 0:00:06]} 57. Kd5 {[%clk 0:00:40]}  Bc2 {[%clk 0:00:05]} 58. Ke6 {[%clk 0:00:40]}  gxf4 {[%clk 0:00:04]} 59. gxf4 {[%clk 0:00:41]}  Bd3 {[%clk 0:00:04]} 60. Kxf6 {[%clk 0:00:42]}  Bc2 {[%clk 0:00:04]} 61. Ke5 {[%clk 0:00:43]}  Bb1 {[%clk 0:00:04]} 62. Kd5 {[%clk 0:00:44]}  Bd3 {[%clk 0:00:04]} 63. Kd4 {[%clk 0:00:43]}  Bb1 {[%clk 0:00:03]} 64. Kc3 {[%clk 0:00:43]}  Ka8 {[%clk 0:00:02]} 65. Kb4 {[%clk 0:00:40]}  Kb8 {[%clk 0:00:02]} 66. Kc5 {[%clk 0:00:41]}  Bc2 {[%clk 0:00:02]} 67. b7 {[%clk 0:00:36]}  Bb1 {[%clk 0:00:02]} 68. Kb6 {[%clk 0:00:37]}  Bc2 {[%clk 0:00:02]} 69. Nc4 {[%clk 0:00:28]}  Be4 {[%clk 0:00:00]} 70. Na5 {[%clk 0:00:29]} 1-0


[Site "https://www.chess.com"]

[Event "Titled Tuesday Blitz August 1 Late 2023"]
[White "Ovchinnikov, Vsevolod"]
[Black "Zierk, Steven"]
[WhiteFideId "24176842"]
[BlackFideId "2034255"]
[WhiteElo "2649"]
[BlackElo "2866"]
[Result "0-1"]
[Round "8"]
[TimeControl "180+1"]
[Date "2023.08.01"]
[WhiteClock "0:00:00"]
[BlackClock "0:00:08"]
[Board "12"]

1. d4 {[%clk 0:03:00]}  d5 {[%clk 0:02:58]} 2. c4 {[%clk 0:03:01]}  dxc4 {[%clk 0:02:59]} 3. Nf3 {[%clk 0:03:01]}  Nf6 {[%clk 0:02:59]} 4. e3 {[%clk 0:03:01]}  e6 {[%clk 0:03:00]} 5. Bxc4 {[%clk 0:03:01]}  c5 {[%clk 0:03:01]} 6. O-O {[%clk 0:03:01]}  a6 {[%clk 0:03:01]} 7. a4 {[%clk 0:03:01]}  Nc6 {[%clk 0:03:01]} 8. Qe2 {[%clk 0:03:02]}  Be7 {[%clk 0:02:58]} 9. Rd1 {[%clk 0:03:01]}  O-O {[%clk 0:02:58]} 10. Nc3 {[%clk 0:02:58]}  Qc7 {[%clk 0:02:55]} 11. dxc5 {[%clk 0:02:44]}  Bxc5 {[%clk 0:02:53]} 12. Bd2 {[%clk 0:02:44]}  b6 {[%clk 0:02:50]} 13. Rac1 {[%clk 0:02:43]}  Bb7 {[%clk 0:02:51]} 14. Be1 {[%clk 0:02:42]}  Rfd8 {[%clk 0:02:44]} 15. Rxd8+ {[%clk 0:02:38]}  Rxd8 {[%clk 0:02:45]} 16. Rd1 {[%clk 0:02:38]}  Rc8 {[%clk 0:02:43]} 17. Bxa6 {[%clk 0:02:04]}  Ra8 {[%clk 0:02:42]} 18. Bxb7 {[%clk 0:01:58]}  Qxb7 {[%clk 0:02:43]} 19. b3 {[%clk 0:01:55]}  h6 {[%clk 0:02:38]} 20. Nb5 {[%clk 0:01:38]}  Nd5 {[%clk 0:02:30]} 21. g3 {[%clk 0:01:33]}  Ncb4 {[%clk 0:02:23]} 22. Ne5 {[%clk 0:01:23]}  Rc8 {[%clk 0:02:14]} 23. Nc4 {[%clk 0:01:14]}  Qe7 {[%clk 0:02:07]} 24. e4 {[%clk 0:01:10]}  Nf6 {[%clk 0:02:06]} 25. Kg2 {[%clk 0:01:10]}  Nc6 {[%clk 0:02:00]} 26. f3 {[%clk 0:01:06]}  h5 {[%clk 0:01:57]} 27. h4 {[%clk 0:01:05]}  Nd7 {[%clk 0:01:32]} 28. Bc3 {[%clk 0:00:40]}  Nf8 {[%clk 0:01:29]} 29. Qd2 {[%clk 0:00:36]}  Rd8 {[%clk 0:01:21]} 30. Qc1 {[%clk 0:00:35]}  Rxd1 {[%clk 0:01:16]} 31. Qxd1 {[%clk 0:00:36]}  g5 {[%clk 0:01:15]} 32. hxg5 {[%clk 0:00:25]}  Qxg5 {[%clk 0:01:16]} 33. f4 {[%clk 0:00:24]}  Qg6 {[%clk 0:01:16]} 34. Qf3 {[%clk 0:00:22]}  Nd7 {[%clk 0:01:11]} 35. f5 {[%clk 0:00:15]}  Qg5 {[%clk 0:01:02]} 36. Bd2 {[%clk 0:00:12]}  Qg7 {[%clk 0:00:57]} 37. fxe6 {[%clk 0:00:08]}  fxe6 {[%clk 0:00:58]} 38. Qxh5 {[%clk 0:00:08]}  Nf6 {[%clk 0:00:56]} 39. Qf3 {[%clk 0:00:06]}  Ng4 {[%clk 0:00:49]} 40. Qf4 {[%clk 0:00:07]}  Nf2 {[%clk 0:00:37]} 41. Nc3 {[%clk 0:00:04]}  Nd3 {[%clk 0:00:32]} 42. Qg5 {[%clk 0:00:04]}  Nd4 {[%clk 0:00:29]} 43. Qxg7+ {[%clk 0:00:04]}  Kxg7 {[%clk 0:00:29]} 44. a5 {[%clk 0:00:02]}  b5 {[%clk 0:00:27]} 45. Ne5 {[%clk 0:00:01]}  Nxe5 {[%clk 0:00:25]} 46. Be3 {[%clk 0:00:01]}  b4 {[%clk 0:00:17]} 47. Bxd4 {[%clk 0:00:01]}  Bxd4 {[%clk 0:00:17]} 48. Nb5 {[%clk 0:00:02]}  Bc5 {[%clk 0:00:17]} 49. a6 {[%clk 0:00:02]}  Nc6 {[%clk 0:00:17]} 50. Kf3 {[%clk 0:00:01]}  Kf6 {[%clk 0:00:17]} 51. Ke2 {[%clk 0:00:01]}  Ke5 {[%clk 0:00:14]} 52. Kd3 {[%clk 0:00:02]}  Bf2 {[%clk 0:00:13]} 53. Kc4 {[%clk 0:00:02]}  Kxe4 {[%clk 0:00:13]} 54. a7 {[%clk 0:00:02]}  Nxa7 {[%clk 0:00:13]} 55. Nc7 {[%clk 0:00:01]}  e5 {[%clk 0:00:13]} 56. Kxb4 {[%clk 0:00:01]}  Kd3 {[%clk 0:00:13]} 57. Ne6 {[%clk 0:00:01]}  e4 {[%clk 0:00:13]} 58. Nf4+ {[%clk 0:00:01]}  Kd2 {[%clk 0:00:12]} 59. Nd5 {[%clk 0:00:01]}  Nc6+ {[%clk 0:00:11]} 60. Kc4 {[%clk 0:00:01]}  Ne5+ {[%clk 0:00:10]} 61. Kb5 {[%clk 0:00:01]}  Kd3 {[%clk 0:00:09]} 62. Ka6 {[%clk 0:00:01]}  Kd4 {[%clk 0:00:09]} 63. Nf4 {[%clk 0:00:01]}  e3 {[%clk 0:00:09]} 64. Kb7 {[%clk 0:00:01]}  Nd3 {[%clk 0:00:08]} 65. Ne2+ {[%clk 0:00:01]}  Ke4 {[%clk 0:00:08]} 66. Nc3+ {[%clk 0:00:01]}  Kf3 {[%clk 0:00:08]} 67. Kc6 {[%clk 0:00:00]}  Be1 {[%clk 0:00:08]} 0-1


[Site "https://www.chess.com"]

[Event "Titled Tuesday Blitz August 1 Late 2023"]
[White "Pranav, V"]
[Black "Kuzmicz, Krystian"]
[WhiteFideId "25060783"]
[BlackFideId "1119125"]
[WhiteElo "3006"]
[BlackElo "2701"]
[Result "1-0"]
[Round "8"]
[TimeControl "180+1"]
[Date "2023.08.01"]
[WhiteClock "0:02:14"]
[BlackClock "0:00:48"]
[Board "13"]

1. e4 {[%clk 0:03:00]}  c5 {[%clk 0:02:59]} 2. Nf3 {[%clk 0:03:01]}  e6 {[%clk 0:02:58]} 3. d4 {[%clk 0:03:01]}  cxd4 {[%clk 0:02:58]} 4. Nxd4 {[%clk 0:03:02]}  Nf6 {[%clk 0:02:59]} 5. Nc3 {[%clk 0:03:03]}  Nc6 {[%clk 0:02:59]} 6. a3 {[%clk 0:03:03]}  d6 {[%clk 0:02:55]} 7. Nxc6 {[%clk 0:03:03]}  bxc6 {[%clk 0:02:55]} 8. Bd3 {[%clk 0:03:04]}  e5 {[%clk 0:02:54]} 9. O-O {[%clk 0:03:05]}  Be7 {[%clk 0:02:54]} 10. h3 {[%clk 0:03:03]}  O-O {[%clk 0:02:53]} 11. b3 {[%clk 0:03:03]}  Be6 {[%clk 0:02:46]} 12. Re1 {[%clk 0:03:02]}  Nd7 {[%clk 0:02:41]} 13. Na4 {[%clk 0:03:00]}  Nb6 {[%clk 0:02:39]} 14. Nb2 {[%clk 0:02:59]}  f6 {[%clk 0:02:36]} 15. c4 {[%clk 0:02:58]}  d5 {[%clk 0:02:35]} 16. Qc2 {[%clk 0:02:49]}  g6 {[%clk 0:02:28]} 17. Bh6 {[%clk 0:02:46]}  Rf7 {[%clk 0:02:23]} 18. Rad1 {[%clk 0:02:45]}  d4 {[%clk 0:02:15]} 19. c5 {[%clk 0:02:45]}  Nd7 {[%clk 0:02:14]} 20. b4 {[%clk 0:02:45]}  a5 {[%clk 0:02:14]} 21. Bc4 {[%clk 0:02:45]}  Bxc4 {[%clk 0:02:12]} 22. Nxc4 {[%clk 0:02:46]}  axb4 {[%clk 0:02:11]} 23. axb4 {[%clk 0:02:46]}  Rb8 {[%clk 0:02:11]} 24. Na5 {[%clk 0:02:46]}  Qc7 {[%clk 0:02:06]} 25. Bd2 {[%clk 0:02:43]}  Nf8 {[%clk 0:01:57]} 26. Ra1 {[%clk 0:02:38]}  Ne6 {[%clk 0:01:56]} 27. Qc4 {[%clk 0:02:38]}  Qc8 {[%clk 0:01:49]} 28. Nxc6 {[%clk 0:02:35]}  Qxc6 {[%clk 0:01:33]} 29. Ra6 {[%clk 0:02:34]}  Qc8 {[%clk 0:01:27]} 30. Rxe6 {[%clk 0:02:33]}  Kg7 {[%clk 0:01:26]} 31. Ra1 {[%clk 0:02:31]}  Bf8 {[%clk 0:01:25]} 32. Rea6 {[%clk 0:02:29]}  Qb7 {[%clk 0:01:24]} 33. Rb6 {[%clk 0:02:27]}  Qc7 {[%clk 0:01:21]} 34. Rxb8 {[%clk 0:02:14]}  Qxb8 {[%clk 0:01:22]} 35. Bh6+ {[%clk 0:02:14]}  Kg8 {[%clk 0:00:48]} 36. Qd5 {[%clk 0:02:14]} 1-0


[Site "https://www.chess.com"]

[Event "Titled Tuesday Blitz August 1 Late 2023"]
[White "Ibarra Jerez, Jose Carlos"]
[Black "Annaberdiyev, Meylis"]
[WhiteFideId "2226332"]
[BlackFideId "14000563"]
[WhiteElo "2879"]
[BlackElo "2677"]
[Result "1/2-1/2"]
[Round "8"]
[TimeControl "180+1"]
[Date "2023.08.01"]
[WhiteClock "0:00:11"]
[BlackClock "0:00:04"]
[Board "17"]

1. e4 {[%clk 0:03:00]}  c5 {[%clk 0:02:59]} 2. Ne2 {[%clk 0:02:59]}  Nc6 {[%clk 0:02:58]} 3. Nbc3 {[%clk 0:02:58]}  g6 {[%clk 0:02:54]} 4. d4 {[%clk 0:02:57]}  cxd4 {[%clk 0:02:54]} 5. Nxd4 {[%clk 0:02:58]}  Bg7 {[%clk 0:02:55]} 6. Be3 {[%clk 0:02:58]}  Nf6 {[%clk 0:02:55]} 7. Bc4 {[%clk 0:02:59]}  Qa5 {[%clk 0:02:54]} 8. O-O {[%clk 0:02:58]}  O-O {[%clk 0:02:50]} 9. Bb3 {[%clk 0:02:57]}  d6 {[%clk 0:02:50]} 10. Nd5 {[%clk 0:02:57]}  Qd8 {[%clk 0:02:28]} 11. Nxf6+ {[%clk 0:02:56]}  Bxf6 {[%clk 0:02:27]} 12. c3 {[%clk 0:02:56]}  Na5 {[%clk 0:02:20]} 13. f4 {[%clk 0:02:55]}  Bd7 {[%clk 0:02:10]} 14. Qe2 {[%clk 0:02:37]}  Rc8 {[%clk 0:02:06]} 15. Rad1 {[%clk 0:02:35]}  Nxb3 {[%clk 0:02:06]} 16. axb3 {[%clk 0:02:35]}  Qc7 {[%clk 0:02:01]} 17. Nf3 {[%clk 0:02:29]}  Bg4 {[%clk 0:01:36]} 18. h3 {[%clk 0:02:06]}  Bxf3 {[%clk 0:01:34]} 19. Rxf3 {[%clk 0:02:07]}  a6 {[%clk 0:01:34]} 20. Qf2 {[%clk 0:02:03]}  Qc6 {[%clk 0:01:32]} 21. Bd4 {[%clk 0:01:56]}  Qxe4 {[%clk 0:01:03]} 22. Bxf6 {[%clk 0:01:52]}  exf6 {[%clk 0:01:04]} 23. Rxd6 {[%clk 0:01:44]}  Rc6 {[%clk 0:01:04]} 24. Rd7 {[%clk 0:01:35]}  Re6 {[%clk 0:00:51]} 25. Kh2 {[%clk 0:01:22]}  f5 {[%clk 0:00:51]} 26. Rfd3 {[%clk 0:01:07]}  Rfe8 {[%clk 0:00:46]} 27. Rd2 {[%clk 0:00:54]}  h5 {[%clk 0:00:43]} 28. Rc7 {[%clk 0:00:52]}  R6e7 {[%clk 0:00:41]} 29. Rxe7 {[%clk 0:00:49]}  Qxe7 {[%clk 0:00:41]} 30. Qb6 {[%clk 0:00:45]}  Qe4 {[%clk 0:00:34]} 31. Rf2 {[%clk 0:00:45]}  h4 {[%clk 0:00:27]} 32. Rf3 {[%clk 0:00:42]}  Qb1 {[%clk 0:00:16]} 33. Rf2 {[%clk 0:00:16]}  Qe1 {[%clk 0:00:11]} 34. Rf3 {[%clk 0:00:14]}  Qb1 {[%clk 0:00:11]} 35. Qf2 {[%clk 0:00:14]}  Re1 {[%clk 0:00:09]} 36. Qxh4 {[%clk 0:00:10]}  Rh1+ {[%clk 0:00:10]} 37. Kg3 {[%clk 0:00:11]}  Qe1+ {[%clk 0:00:10]} 38. Rf2 {[%clk 0:00:11]}  Qe3+ {[%clk 0:00:06]} 39. Rf3 {[%clk 0:00:11]}  Qe1+ {[%clk 0:00:06]} 40. Rf2 {[%clk 0:00:11]}  Qe3+ {[%clk 0:00:04]} 41. Rf3 {[%clk 0:00:11]}  Qe1+ {[%clk 0:00:04]} 1/2-1/2


[Site "https://www.chess.com"]

[Event "Titled Tuesday Blitz August 1 Late 2023"]
[White "Hansen, Eric"]
[Black "Piesik, Piotr"]
[WhiteFideId "2606771"]
[BlackFideId "1136194"]
[WhiteElo "2843"]
[BlackElo "2640"]
[Result "1-0"]
[Round "8"]
[TimeControl "180+1"]
[Date "2023.08.01"]
[WhiteClock "0:00:29"]
[BlackClock "0:00:11"]
[Board "20"]

1. e4 {[%clk 0:02:58]}  c6 {[%clk 0:02:55]} 2. d4 {[%clk 0:02:58]}  d5 {[%clk 0:02:55]} 3. e5 {[%clk 0:02:59]}  Bf5 {[%clk 0:02:55]} 4. Nf3 {[%clk 0:02:59]}  e6 {[%clk 0:02:54]} 5. Be2 {[%clk 0:03:00]}  Be7 {[%clk 0:02:54]} 6. O-O {[%clk 0:03:00]}  h5 {[%clk 0:02:54]} 7. Nbd2 {[%clk 0:03:01]}  Nh6 {[%clk 0:02:53]} 8. Nb3 {[%clk 0:03:01]}  Nd7 {[%clk 0:02:50]} 9. Bd2 {[%clk 0:03:00]}  h4 {[%clk 0:02:44]} 10. h3 {[%clk 0:02:58]}  Bg6 {[%clk 0:02:43]} 11. Rc1 {[%clk 0:02:56]}  Nf5 {[%clk 0:02:41]} 12. Bd3 {[%clk 0:02:56]}  Qc7 {[%clk 0:02:32]} 13. Re1 {[%clk 0:02:56]}  a6 {[%clk 0:02:31]} 14. a4 {[%clk 0:02:56]}  b5 {[%clk 0:02:28]} 15. Na5 {[%clk 0:02:48]}  Rc8 {[%clk 0:02:17]} 16. b4 {[%clk 0:02:41]}  Nb6 {[%clk 0:02:13]} 17. axb5 {[%clk 0:02:41]}  axb5 {[%clk 0:02:12]} 18. Nb3 {[%clk 0:02:40]}  Nc4 {[%clk 0:02:07]} 19. Rb1 {[%clk 0:02:26]}  Ra8 {[%clk 0:02:06]} 20. Bg5 {[%clk 0:02:19]}  Bxg5 {[%clk 0:01:59]} 21. Nxg5 {[%clk 0:02:19]}  Qe7 {[%clk 0:01:59]} 22. Qc1 {[%clk 0:02:16]}  Qxb4 {[%clk 0:01:50]} 23. Nc5 {[%clk 0:02:10]}  Qd2 {[%clk 0:01:42]} 24. Qxd2 {[%clk 0:01:43]}  Nxd2 {[%clk 0:01:43]} 25. Ra1 {[%clk 0:01:44]}  Ke7 {[%clk 0:01:43]} 26. c3 {[%clk 0:01:34]}  Nc4 {[%clk 0:01:33]} 27. Na6 {[%clk 0:01:28]}  Kd7 {[%clk 0:01:23]} 28. Bxf5 {[%clk 0:01:24]}  Bxf5 {[%clk 0:01:18]} 29. Nxf7 {[%clk 0:01:22]}  Rhf8 {[%clk 0:01:13]} 30. Nc5+ {[%clk 0:01:21]}  Ke7 {[%clk 0:01:11]} 31. Ng5 {[%clk 0:01:22]}  Nb6 {[%clk 0:00:56]} 32. Nf3 {[%clk 0:01:18]}  Na4 {[%clk 0:00:54]} 33. Nxh4 {[%clk 0:01:17]}  Bh7 {[%clk 0:00:52]} 34. Re3 {[%clk 0:00:58]}  Nxc5 {[%clk 0:00:41]} 35. Rxa8 {[%clk 0:00:57]}  Rxa8 {[%clk 0:00:42]} 36. dxc5 {[%clk 0:00:58]}  Ra4 {[%clk 0:00:39]} 37. Nf3 {[%clk 0:00:59]}  Rc4 {[%clk 0:00:39]} 38. Nd4 {[%clk 0:00:59]}  Rxc5 {[%clk 0:00:39]} 39. Rg3 {[%clk 0:01:00]}  g6 {[%clk 0:00:34]} 40. Nb3 {[%clk 0:00:45]}  Rc4 {[%clk 0:00:33]} 41. Na5 {[%clk 0:00:45]}  Re4 {[%clk 0:00:22]} 42. f3 {[%clk 0:00:38]}  Re2 {[%clk 0:00:20]} 43. Nxc6+ {[%clk 0:00:34]}  Kd7 {[%clk 0:00:20]} 44. Nd4 {[%clk 0:00:35]}  Rxe5 {[%clk 0:00:19]} 45. Kf2 {[%clk 0:00:32]}  g5 {[%clk 0:00:15]} 46. h4 {[%clk 0:00:31]}  Bd3 {[%clk 0:00:13]} 47. hxg5 {[%clk 0:00:30]}  Ke8 {[%clk 0:00:14]} 48. f4 {[%clk 0:00:28]}  Re4 {[%clk 0:00:11]} 49. Rxd3 {[%clk 0:00:29]} 1-0


[Site "https://www.chess.com"]